[Event "Romanian Championship Open 2025"]
[Site "Craiova"]
[Date "2025.02.18"]
[Round "4.15"]
[White "Filip, Andrei"]
[Black "Berechet, Otiliu-Octavian"]
[Result "1-0"]
[Annotator "ChessBase"]
[ECO "B27"]
[WhiteElo "2320"]
[BlackElo "1946"]
[PlyCount "77"]
[EventDate "2025.02.12"]
[EventType "swiss"]
[EventCountry "ROU"]
[SourceTitle "playchess.com"]
[Source "ChessBase"]
[SourceQuality "1"]
[TimeControl "40/5400+30:900+30"]

1. e4 {[%emt 0:00:05]} c5 {[%emt 0:00:26]} 2. Nf3 {[%emt 0:00:08]} Qa5 {[%emt 0:05:31]} 3. Nc3 {[%emt 0:01:58]} g6 {[%emt 0:00:09]} 4. Bc4 {[%emt 0:04:18]} Nc6 {[%emt 0:00:06]} 5. O-O {[%emt 0:07:57]} Bg7 {[%emt 0:04:25]} 6. d3 {[%emt 0:02:02]} d6 {[%emt 0:00:22]} 7. Re1 {[%emt 0:03:03]} a6 {[%emt 0:04:36]} 8. Bd2 {[%emt 0:06:06]} Qd8 {[%emt 0:00:18]} 9. a4 {[%emt 0:00:26]} Bd7 {[%emt 0:02:30]} 10. Qc1 {[%emt 0:03:13]} h6 {[%emt 0:00:35]} 11. Be3 {[%emt 0:12:22]} Rc8 {[%emt 0:05:24]} 12. Nd5 {[%emt 0:04:20]} Kf8 {[%emt 0:04:03]} 13. h3 {[%emt 0:08:30]} e6 {[%emt 0:06:30]} 14. Nf4 {[%emt 0:02:19]} Ne5 {[%emt 0:00:30]} 15. Nxe5 {[%emt 0:00:37]} Bxe5 {[%emt 0:00:01]} 16. Ne2 {[%emt 0:01:31]} b5 {[%emt 0:08:35]} 17. axb5 {[%emt 0:02:34]} axb5 {[%emt 0:00:02]} 18. Ba2 {[%emt 0:00:08]} Qc7 {[%emt 0:00:28]} 19. c3 {[%emt 0:00:32]} Qb7 {[%emt 0:03:53]} 20. Qd2 {[%emt 0:01:10]} g5 {[%emt 0:07:39]} 21. f4 {[%emt 0:03:04]} gxf4 {[%emt 0:00:29]} 22. Bxf4 {[%emt 0:00:07]} Rh7 {[%emt 0:04:23]} 23. d4 {[%emt 0:03:36]} Bxf4 {[%emt 0:04:13]} 24. Nxf4 {[%emt 0:01:09]} c4 {[%emt 0:05:23]} 25. Qf2 {[%emt 0:01:19]} Ra8 {[%emt 0:01:45]} 26. b3 {[%emt 0:03:07]} Rg7 {[%emt 0:11:10]} 27. bxc4 {[%emt 0:01:48]} e5 {[%emt 0:00:42]} 28. dxe5 {[%emt 0:01:06]} dxe5 {[%emt 0:00:02]} 29. Qc5+ {[%emt 0:01:36]} Ne7 {[%emt 0:00:37]} 30. Qxe5 {[%emt 0:00:38]} Rg5 {[%emt 0:04:38]} 31. Qh8+ {[%emt 0:02:37]} Ng8 {[%emt 0:00:02]} 32. c5 {[%emt 0:03:39]} Ra4 {[%emt 0:00:31]} 33. Bd5 {[%emt 0:01:58]} Qc7 {[%emt 0:00:29]} 34. Rxa4 {[%emt 0:00:37]} bxa4 {[%emt 0:00:22]} 35. Rf1 {[%emt 0:00:23]} Bxh3 {[%emt 0:03:26]} 36. Nxh3 {[%emt 0:18:27]} Rg7 37. Nf4 {[%emt 0:00:00]} Qxc5+ {[%emt 0:00:02]} 38. Kh1 {[%emt 0:00:00]} Qb5 {[%emt 0:04:26]} 39. c4 {[%emt 0:00:00]} 1-0

[Event "Romanian Championship Open 2025"]
[Site "Craiova"]
[Date "2025.02.18"]
[Round "4.16"]
[White "Tudoroiu, Razvan-Catalin"]
[Black "Nedelcu, Teodor-Cosmin"]
[Result "1/2-1/2"]
[Annotator "ChessBase"]
[ECO "D02"]
[WhiteElo "2085"]
[BlackElo "2320"]
[PlyCount "102"]
[EventDate "2025.02.12"]
[EventType "swiss"]
[EventCountry "ROU"]
[SourceTitle "playchess.com"]
[Source "ChessBase"]
[SourceQuality "1"]
[TimeControl "40/5400+30:900+30"]

1. d4 {[%emt 0:00:05]} d5 {[%emt 0:00:03]} 2. Bf4 {[%emt 0:00:09]} Nf6 {[%emt 0:00:05]} 3. e3 {[%emt 0:00:06]} e6 {[%emt 0:00:04]} 4. Nf3 {[%emt 0:01:17]} Bd6 {[%emt 0:00:30]} 5. Ne5 {[%emt 0:00:08]} Nbd7 {[%emt 0:03:00]} 6. Nd2 {[%emt 0:00:49]} Qe7 {[%emt 0:03:30]} 7. Bd3 {[%emt 0:03:53]} c6 {[%emt 0:01:40]} 8. O-O {[%emt 0:02:38]} O-O {[%emt 0:00:41]} 9. Bg3 {[%emt 0:02:52]} Ne8 {[%emt 0:03:52]} 10. f4 {[%emt 0:08:38]} f5 {[%emt 0:01:33]} 11. c3 {[%emt 0:03:56]} Nef6 {[%emt 0:10:16]} 12. Bh4 {[%emt 0:00:22]} Qe8 {[%emt 0:02:53]} 13. h3 {[%emt 0:05:00]} Ne4 {[%emt 0:02:15]} 14. Nxe4 {[%emt 0:02:41]} fxe4 {[%emt 0:03:24]} 15. Be2 {[%emt 0:00:30]} Be7 {[%emt 0:00:49]} 16. Qe1 {[%emt 0:27:45]} Nxe5 {[%emt 0:04:02]} 17. fxe5 {[%emt 0:02:02]} Rxf1+ {[%emt 0:00:24]} 18. Bxf1 {[%emt 0:00:06]} g5 {[%emt 0:00:28]} 19. Bg3 {[%emt 0:00:18]} Qg6 {[%emt 0:00:46]} 20. Be2 {[%emt 0:01:00]} Bd7 {[%emt 0:00:12]} 21. Qd1 {[%emt 0:00:55]} Be8 {[%emt 0:01:26]} 22. Qb3 {[%emt 0:00:47]} b6 {[%emt 0:02:33]} 23. c4 {[%emt 0:01:39]} Bd7 {[%emt 0:02:25]} 24. a4 {[%emt 0:01:58]} Rc8 {[%emt 0:01:05]} 25. Rf1 {[%emt 0:09:05]} Qg7 {[%emt 0:06:43]} 26. Be1 {[%emt 0:05:24]} Rd8 {[%emt 0:06:46]} 27. a5 {[%emt 0:01:48]} b5 {[%emt 0:04:16]} 28. cxb5 {[%emt 0:00:06]} cxb5 {[%emt 0:00:02]} 29. Bb4 {[%emt 0:00:09]} g4 {[%emt 0:17:02]} 30. Bxg4 {[%emt 0:01:58]} Bg5 {[%emt 0:00:09]} 31. Bd2 {[%emt 0:03:20]} Qh6 {[%emt 0:05:37]} 32. Qa3 {[%emt 0:01:58]} Bc8 {[%emt 0:03:54]} 33. Qc5 {[%emt 0:04:30]} a6 {[%emt 0:04:05]} 34. Kh2 {[%emt 0:02:04]} Qg6 {[%emt 0:00:15]} 35. Bb4 {[%emt 0:01:21]} h5 {[%emt 0:03:10]} 36. Rf8+ {[%emt 0:00:14]} Rxf8 {[%emt 0:00:01]} 37. Qxf8+ {[%emt 0:00:02]} Kh7 {[%emt 0:00:01]} 38. Bxh5 {[%emt 0:01:13]} Qxh5 {[%emt 0:00:17]} 39. Qxc8 {[%emt 0:00:02]} Bxe3 {[%emt 0:00:15]} 40. Qd7+ {[%emt 0:00:00]} Kh8 {[%emt 0:00:00]} 41. Qd8+ {[%emt 0:02:50]} Kh7 {[%emt 0:01:35]} 42. Qe7+ {[%emt 0:00:51]} Kh8 {[%emt 0:00:14]} 43. Qf6+ {[%emt 0:05:21]} Kh7 {[%emt 0:00:38]} 44. Qe7+ {[%emt 0:12:24]} Kh8 {[%emt 0:00:10]} 45. Qf6+ {[%emt 0:00:06]} Kh7 {[%emt 0:00:08]} 46. Qe7+ {[%emt 0:03:10]} Kh8 {[%emt 0:00:03]} 47. Qf6+ {[%emt 0:00:06]} Kh7 {[%emt 0:00:05]} 48. Qe7+ {[%emt 0:01:17]} Kh8 {[%emt 0:00:03]} 49. Qf6+ {[%emt 0:00:31]} Kh7 {[%emt 0:00:05]} 50. Qe7+ {[%emt 0:00:30]} Kh8 {[%emt 0:00:09]} 51. Qf6+ {[%emt 0:01:06]} Kh7 {[%emt 0:27:21]} 1/2-1/2

[Event "Romanian Championship Open 2025"]
[Site "Craiova"]
[Date "2025.02.18"]
[Round "4.17"]
[White "Coicev, Matei-Andrei"]
[Black "Buzbuchi, Ionut"]
[Result "1-0"]
[Annotator "ChessBase"]
[ECO "B22"]
[WhiteElo "2286"]
[BlackElo "2034"]
[PlyCount "59"]
[EventDate "2025.02.12"]
[EventType "swiss"]
[EventCountry "ROU"]
[SourceTitle "playchess.com"]
[Source "ChessBase"]
[SourceQuality "1"]
[TimeControl "40/5400+30:900+30"]

1. e4 {[%emt 0:00:09]} c5 {[%emt 0:00:04]} 2. c3 {[%emt 0:00:13]} Nf6 {[%emt 0:00:06]} 3. e5 {[%emt 0:00:09]} Nd5 {[%emt 0:00:03]} 4. Nf3 {[%emt 0:00:07]} Nc6 {[%emt 0:00:07]} 5. Bc4 {[%emt 0:00:06]} Nb6 {[%emt 0:00:06]} 6. Bb3 {[%emt 0:00:06]} d5 {[%emt 0:00:22]} 7. exd6 {[%emt 0:00:20]} c4 {[%emt 0:00:05]} 8. Bc2 {[%emt 0:00:32]} Qxd6 {[%emt 0:00:06]} 9. O-O {[%emt 0:01:31]} Bg4 {[%emt 0:00:09]} 10. d4 {[%emt 0:01:46]} cxd3 {[%emt 0:00:51]} 11. Qxd3 {[%emt 0:00:16]} Qxd3 {[%emt 0:05:30]} 12. Bxd3 {[%emt 0:00:03]} O-O-O {[%emt 0:00:07]} 13. Be4 {[%emt 0:02:53]} f6 {[%emt 0:07:17]} 14. h3 {[%emt 0:04:29]} Bh5 {[%emt 0:01:58]} 15. a4 {[%emt 0:02:50]} Bg6 {[%emt 0:06:04]} 16. Bxc6 {[%emt 0:06:16]} bxc6 {[%emt 0:00:05]} 17. Nd4 {[%emt 0:00:58]} e5 {[%emt 0:04:23]} 18. Nxc6 {[%emt 0:01:51]} Rd7 {[%emt 0:00:04]} 19. Be3 {[%emt 0:01:55]} Nc4 {[%emt 0:01:06]} 20. Nxa7+ {[%emt 0:00:46]} Kb7 {[%emt 0:00:11]} 21. Nb5 {[%emt 0:00:48]} Nxe3 {[%emt 0:00:33]} 22. fxe3 {[%emt 0:00:07]} Bc5 {[%emt 0:00:09]} 23. Re1 {[%emt 0:00:49]} Rhd8 {[%emt 0:14:32]} 24. N1a3 {[%emt 0:07:06]} Rd3 {[%emt 0:10:24]} 25. Kf2 {[%emt 0:04:20]} Rxe3 {[%emt 0:02:22]} 26. Rxe3 {[%emt 0:01:53]} Rd2+ {[%emt 0:01:59]} 27. Kf3 {[%emt 0:05:13]} e4+ {[%emt 0:01:13]} 28. Rxe4 {[%emt 0:00:38]} Rf2+ {[%emt 0:00:08]} 29. Kg3 {[%emt 0:00:04]} Bxe4 {[%emt 0:00:08]} 30. Nd6+ {[%emt 0:00:03]} 1-0

[Event "Romanian Championship Open 2025"]
[Site "Craiova"]
[Date "2025.02.18"]
[Round "4.18"]
[White "Costache, Andrei Eugeniu"]
[Black "Nastore, Pavel-Alexandru"]
[Result "0-1"]
[Annotator "ChessBase"]
[ECO "B90"]
[WhiteElo "2075"]
[BlackElo "2250"]
[PlyCount "116"]
[EventDate "2025.02.12"]
[EventType "swiss"]
[EventCountry "ROU"]
[SourceTitle "playchess.com"]
[Source "ChessBase"]
[SourceQuality "1"]
[TimeControl "40/5400+30:900+30"]

1. e4 {[%emt 0:00:10]} c5 {[%emt 0:00:12]} 2. Nf3 {[%emt 0:00:49]} d6 {[%emt 0:00:06]} 3. d4 {[%emt 0:00:17]} cxd4 {[%emt 0:00:05]} 4. Nxd4 {[%emt 0:00:06]} Nf6 {[%emt 0:00:04]} 5. Nc3 {[%emt 0:00:32]} a6 {[%emt 0:00:06]} 6. Rg1 {[%emt 0:00:31]} e5 {[%emt 0:03:15]} 7. Nb3 {[%emt 0:00:42]} h5 {[%emt 0:00:10]} 8. Bg5 {[%emt 0:03:36]} Be7 {[%emt 0:11:07]} 9. Qd3 {[%emt 0:03:26]} Be6 {[%emt 0:00:38]} 10. O-O-O {[%emt 0:01:22]} Nbd7 {[%emt 0:00:46]} 11. f4 {[%emt 0:02:16]} Rc8 {[%emt 0:13:25]} 12. h3 {[%emt 0:06:29]} h4 {[%emt 0:06:26]} 13. Kb1 {[%emt 0:06:17]} b5 {[%emt 0:12:24]} 14. g3 {[%emt 0:15:16]} hxg3 {[%emt 0:03:37]} 15. Qxg3 {[%emt 0:02:10]} Nh5 {[%emt 0:35:40]} 16. Bxe7 {[%emt 0:09:01]} Qxe7 {[%emt 0:00:07]} 17. Qd3 {[%emt 0:06:16]} Nxf4 {[%emt 0:00:41]} 18. Qxd6 {[%emt 0:01:23]} Qxd6 {[%emt 0:00:15]} 19. Rxd6 {[%emt 0:00:04]} Ke7 {[%emt 0:00:15]} 20. Rxa6 {[%emt 0:02:13]} b4 {[%emt 0:00:05]} 21. Nd5+ {[%emt 0:05:55]} Nxd5 {[%emt 0:02:21]} 22. exd5 {[%emt 0:00:17]} Bxd5 {[%emt 0:00:08]} 23. Nd2 {[%emt 0:10:49]} g6 {[%emt 0:01:43]} 24. Rg3 {[%emt 0:02:46]} Rh4 {[%emt 0:02:34]} 25. a3 {[%emt 0:07:52]} Ra8 {[%emt 0:01:31]} 26. Rxa8 {[%emt 0:00:28]} Bxa8 {[%emt 0:00:04]} 27. axb4 {[%emt 0:00:46]} Rxb4 {[%emt 0:00:16]} 28. c4 {[%emt 0:01:27]} e4 {[%emt 0:01:58]} 29. Bg2 {[%emt 0:00:43]} Nc5 {[%emt 0:00:18]} 30. Kc2 {[%emt 0:03:26]} Rb6 {[%emt 0:03:57]} 31. Rg5 {[%emt 0:00:57]} Kd6 {[%emt 0:00:53]} 32. b3 {[%emt 0:02:42]} Bb7 {[%emt 0:00:45]} 33. Kc3 {[%emt 0:04:36]} e3 {[%emt 0:00:05]} 34. Bxb7 {[%emt 0:00:28]} Rxb7 {[%emt 0:00:36]} 35. b4 {[%emt 0:01:15]} Na4+ {[%emt 0:00:16]} 36. Kb3 {[%emt 0:00:06]} exd2 {[%emt 0:00:11]} 37. Rd5+ {[%emt 0:00:20]} Ke6 {[%emt 0:00:34]} 38. Rxd2 {[%emt 0:00:54]} Nc5+ {[%emt 0:00:05]} 39. Ka3 {[%emt 0:00:16]} Ra7+ {[%emt 0:00:05]} 40. Kb2 {[%emt 0:00:00]} Ne4 {[%emt 0:00:00]} 41. Re2 {[%emt 0:01:07]} Ke5 {[%emt 0:00:19]} 42. b5 {[%emt 0:00:14]} Kd4 {[%emt 0:00:38]} 43. Rc2 {[%emt 0:00:58]} f5 {[%emt 0:00:22]} 44. Kb3 {[%emt 0:00:11]} Nc5+ {[%emt 0:00:07]} 45. Kb2 {[%emt 0:00:04]} g5 {[%emt 0:00:33]} 46. Rg2 {[%emt 0:00:18]} Ne4 {[%emt 0:00:05]} 47. Kb3 {[%emt 0:00:22]} f4 {[%emt 0:00:47]} 48. h4 {[%emt 0:00:28]} f3 {[%emt 0:00:37]} 49. Rg1 {[%emt 0:00:32]} gxh4 {[%emt 0:00:13]} 50. Kb4 {[%emt 0:00:08]} f2 {[%emt 0:00:48]} 51. Rd1+ {[%emt 0:00:27]} Ke3 {[%emt 0:00:09]} 52. c5 {[%emt 0:00:07]} Ra4+ {[%emt 0:01:08]} 53. Kxa4 {[%emt 0:00:35]} Nc3+ {[%emt 0:00:04]} 54. Ka5 {[%emt 0:00:04]} Nxd1 {[%emt 0:00:04]} 55. b6 {[%emt 0:00:13]} f1=Q {[%emt 0:00:04]} 56. b7 {[%emt 0:00:04]} Qf4 {[%emt 0:00:27]} 57. Kb6 {[%emt 0:00:22]} Qb8 {[%emt 0:00:40]} 58. c6 {[%emt 0:00:04]} Nc3 {[%emt 0:00:03]} 0-1

[Event "Romanian Championship Open 2025"]
[Site "Craiova"]
[Date "2025.02.18"]
[Round "4.19"]
[White "Gales, Randi-Ioan"]
[Black "Dascalescu, Adelin-Stefan"]
[Result "0-1"]
[Annotator "ChessBase"]
[ECO "D37"]
[WhiteElo "2247"]
[BlackElo "2045"]
[PlyCount "82"]
[EventDate "2025.02.12"]
[EventType "swiss"]
[EventCountry "ROU"]
[SourceTitle "playchess.com"]
[Source "ChessBase"]
[SourceQuality "1"]
[TimeControl "40/5400+30:900+30"]

1. Nf3 {[%emt 0:00:07]} d5 {[%emt 0:00:12]} 2. c4 {[%emt 0:01:32]} e6 {[%emt 0:00:30]} 3. d4 {[%emt 0:02:35]} Nf6 {[%emt 0:00:09]} 4. Nc3 {[%emt 0:00:17]} a6 {[%emt 0:00:03]} 5. cxd5 {[%emt 0:01:58]} exd5 {[%emt 0:00:16]} 6. Bg5 {[%emt 0:00:44]} c6 {[%emt 0:00:39]} 7. Qc2 {[%emt 0:01:05]} Be7 {[%emt 0:00:39]} 8. e3 {[%emt 0:00:05]} h6 {[%emt 0:00:15]} 9. Bf4 {[%emt 0:02:30]} O-O {[%emt 0:05:45]} 10. Bd3 {[%emt 0:00:08]} Nh5 {[%emt 0:00:36]} 11. Be5 {[%emt 0:01:42]} Nd7 {[%emt 0:05:24]} 12. h3 {[%emt 0:03:04]} Nxe5 {[%emt 0:03:12]} 13. dxe5 {[%emt 0:01:29]} g6 {[%emt 0:01:21]} 14. O-O-O {[%emt 0:04:14]} Ng7 {[%emt 0:00:38]} 15. h4 {[%emt 0:05:52]} b5 {[%emt 0:03:35]} 16. h5 {[%emt 0:01:36]} g5 {[%emt 0:00:58]} 17. Nd4 {[%emt 0:01:42]} Bd7 {[%emt 0:01:27]} 18. Nf5 {[%emt 0:11:49]} Bxf5 {[%emt 0:00:35]} 19. Bxf5 {[%emt 0:00:04]} b4 {[%emt 0:00:19]} 20. Ne2 {[%emt 0:00:41]} Qb6 {[%emt 0:06:13]} 21. g4 {[%emt 0:05:02]} a5 {[%emt 0:02:47]} 22. Qa4 {[%emt 0:08:02]} Nxf5 {[%emt 0:13:17]} 23. gxf5 {[%emt 0:00:04]} Rfe8 {[%emt 0:00:34]} 24. Rd3 {[%emt 0:12:54]} Bc5 {[%emt 0:01:15]} 25. e6 {[%emt 0:06:28]} fxe6 {[%emt 0:00:11]} 26. fxe6 {[%emt 0:00:53]} Rxe6 {[%emt 0:00:20]} 27. Rg1 {[%emt 0:04:41]} Rf8 {[%emt 0:01:21]} 28. Rg2 {[%emt 0:01:15]} Rxf2 {[%emt 0:01:36]} 29. Rxf2 {[%emt 0:01:51]} Bxe3+ {[%emt 0:00:02]} 30. Kd1 {[%emt 0:00:26]} Bxf2 {[%emt 0:00:07]} 31. Rf3 {[%emt 0:03:39]} Bh4 {[%emt 0:08:14]} 32. Qc2 {[%emt 0:00:44]} Re4 {[%emt 0:01:39]} 33. Qd3 {[%emt 0:01:22]} Qb5 {[%emt 0:03:14]} 34. Qxb5 {[%emt 0:01:04]} cxb5 {[%emt 0:00:06]} 35. Rf5 {[%emt 0:00:34]} d4 {[%emt 0:01:13]} 36. Rxb5 {[%emt 0:03:36]} d3 {[%emt 0:08:29]} 37. Nc1 {[%emt 0:00:09]} g4 {[%emt 0:01:49]} 38. Rf5 {[%emt 0:06:21]} Re1+ {[%emt 0:02:36]} 39. Kd2 {[%emt 0:00:04]} g3 {[%emt 0:00:44]} 40. Rf4 {[%emt 0:00:00]} Bg5 {[%emt 0:00:00]} 41. Kxe1 {[%emt 0:04:39]} d2+ {[%emt 0:00:18]} 0-1

[Event "Romanian Championship Open 2025"]
[Site "Craiova"]
[Date "2025.02.18"]
[Round "4.20"]
[White "Barbu, Simon-Alexandru"]
[Black "Bonte, Andrei-Mihai"]
[Result "1/2-1/2"]
[Annotator "ChessBase"]
[ECO "C45"]
[WhiteElo "2023"]
[BlackElo "2237"]
[PlyCount "77"]
[EventDate "2025.02.12"]
[EventType "swiss"]
[EventCountry "ROU"]
[SourceTitle "playchess.com"]
[Source "ChessBase"]
[SourceQuality "1"]
[TimeControl "40/5400+30:900+30"]

1. e4 {[%emt 0:00:05]} e5 {[%emt 0:00:50]} 2. Nf3 {[%emt 0:00:23]} Nc6 {[%emt 0:00:06]} 3. d4 {[%emt 0:00:05]} exd4 {[%emt 0:00:24]} 4. Nxd4 {[%emt 0:00:05]} Bc5 {[%emt 0:02:05]} 5. Nb3 {[%emt 0:00:19]} Bb4+ {[%emt 0:00:43]} 6. c3 {[%emt 0:00:41]} Be7 {[%emt 0:00:06]} 7. g3 {[%emt 0:00:13]} Nf6 {[%emt 0:00:49]} 8. Bg2 {[%emt 0:00:29]} d6 {[%emt 0:00:09]} 9. h3 {[%emt 0:00:09]} Be6 {[%emt 0:05:06]} 10. Nd4 {[%emt 0:07:28]} Nxd4 {[%emt 0:03:45]} 11. Qxd4 {[%emt 0:04:21]} d5 {[%emt 0:27:03]} 12. e5 {[%emt 0:20:11]} Ne4 {[%emt 0:02:32]} 13. O-O {[%emt 0:01:49]} Qd7 {[%emt 0:29:26]} 14. c4 {[%emt 0:30:34]} c6 {[%emt 0:13:29]} 15. cxd5 {[%emt 0:01:49]} cxd5 {[%emt 0:00:09]} 16. Nd2 {[%emt 0:00:48]} Bc5 {[%emt 0:02:39]} 17. Qd3 {[%emt 0:00:27]} O-O {[%emt 0:05:03]} 18. Nxe4 {[%emt 0:18:36]} dxe4 {[%emt 0:00:03]} 19. Qxe4 {[%emt 0:04:14]} Bxh3 {[%emt 0:00:16]} 20. Re1 {[%emt 0:00:52]} Bxg2 {[%emt 0:00:26]} 21. Kxg2 {[%emt 0:00:09]} Rfe8 {[%emt 0:01:35]} 22. Bf4 {[%emt 0:00:41]} Rad8 {[%emt 0:00:51]} 23. Rad1 {[%emt 0:04:51]} Qe6 {[%emt 0:02:27]} 24. a3 {[%emt 0:01:47]} Rxd1 {[%emt 0:00:14]} 25. Rxd1 {[%emt 0:00:01]} b6 {[%emt 0:00:39]} 26. Qd5 {[%emt 0:00:18]} Qf5 {[%emt 0:00:44]} 27. Qd3 {[%emt 0:00:57]} Qxd3 {[%emt 0:01:03]} 28. Rxd3 {[%emt 0:00:01]} h6 {[%emt 0:00:08]} 29. b4 {[%emt 0:01:11]} Bf8 {[%emt 0:00:07]} 30. g4 {[%emt 0:00:44]} g5 {[%emt 0:00:19]} 31. Bg3 {[%emt 0:00:03]} a5 {[%emt 0:00:19]} 32. bxa5 {[%emt 0:00:35]} bxa5 {[%emt 0:00:01]} 33. Rd5 {[%emt 0:00:51]} a4 {[%emt 0:00:53]} 34. Ra5 {[%emt 0:00:06]} Bxa3 {[%emt 0:00:11]} 35. Rxa4 {[%emt 0:00:02]} Bb2 {[%emt 0:00:19]} 36. Ra5 {[%emt 0:00:22]} Kg7 {[%emt 0:00:48]} 37. Rb5 {[%emt 0:00:28]} Ba1 {[%emt 0:00:57]} 38. Ra5 {[%emt 0:00:55]} Bb2 {[%emt 0:00:08]} 39. Rb5 {[%emt 0:00:45]} 1/2-1/2

[Event "Romanian Championship Open 2025"]
[Site "Craiova"]
[Date "2025.02.18"]
[Round "4.21"]
[White "Panc, Samuel"]
[Black "Negrean, Andrei"]
[Result "0-1"]
[Annotator "ChessBase"]
[ECO "B52"]
[WhiteElo "2036"]
[BlackElo "2224"]
[PlyCount "70"]
[EventDate "2025.02.12"]
[EventType "swiss"]
[EventCountry "ROU"]
[SourceTitle "playchess.com"]
[Source "ChessBase"]
[SourceQuality "1"]
[TimeControl "40/5400+30:900+30"]

1. e4 {[%emt 0:00:02]} c5 {[%emt 0:00:09]} 2. Nf3 {[%emt 0:00:06]} d6 {[%emt 0:00:14]} 3. Bb5+ {[%emt 0:00:10]} Bd7 {[%emt 0:00:37]} 4. Bxd7+ {[%emt 0:00:07]} Qxd7 {[%emt 0:00:19]} 5. c4 {[%emt 0:00:06]} Nf6 {[%emt 0:01:27]} 6. Nc3 {[%emt 0:00:06]} g6 {[%emt 0:00:31]} 7. d4 {[%emt 0:00:50]} cxd4 {[%emt 0:00:13]} 8. Nxd4 {[%emt 0:00:05]} Bg7 {[%emt 0:00:32]} 9. f3 {[%emt 0:00:40]} O-O {[%emt 0:01:16]} 10. Be3 {[%emt 0:01:34]} Nc6 {[%emt 0:02:40]} 11. O-O {[%emt 0:00:38]} Rac8 {[%emt 0:07:30]} 12. b3 {[%emt 0:00:34]} e6 {[%emt 0:08:54]} 13. Qd2 {[%emt 0:01:01]} Rfd8 {[%emt 0:20:49]} 14. Rad1 {[%emt 0:01:07]} d5 {[%emt 0:09:49]} 15. cxd5 {[%emt 0:01:38]} exd5 {[%emt 0:00:43]} 16. Nxc6 {[%emt 0:00:05]} bxc6 {[%emt 0:01:25]} 17. e5 {[%emt 0:00:31]} Ne8 {[%emt 0:01:18]} 18. f4 {[%emt 0:00:06]} Qe7 {[%emt 0:13:02]} 19. Qf2 {[%emt 0:06:07]} f6 {[%emt 0:02:25]} 20. Bc5 {[%emt 0:04:57]} Qf7 {[%emt 0:02:48]} 21. Qe3 {[%emt 0:20:02]} Nc7 {[%emt 0:06:57]} 22. Bxa7 {[%emt 0:03:37]} Re8 {[%emt 0:02:49]} 23. Rde1 {[%emt 0:06:50]} Ne6 {[%emt 0:01:25]} 24. Na4 {[%emt 0:01:55]} fxe5 {[%emt 0:04:05]} 25. fxe5 {[%emt 0:01:20]} Qe7 {[%emt 0:00:45]} 26. Bb6 {[%emt 0:04:16]} c5 {[%emt 0:05:17]} 27. Qd3 {[%emt 0:11:48]} Qb7 {[%emt 0:01:14]} 28. Rd1 {[%emt 0:01:56]} Bxe5 {[%emt 0:03:47]} 29. Qxd5 {[%emt 0:00:27]} Qxd5 {[%emt 0:00:08]} 30. Rxd5 {[%emt 0:00:04]} Bd4+ {[%emt 0:00:28]} 31. Kh1 {[%emt 0:01:31]} Nf4 {[%emt 0:01:50]} 32. Rd7 {[%emt 0:03:39]} Re2 {[%emt 0:00:16]} 33. h3 {[%emt 0:17:51]} Nxg2 {[%emt 0:00:32]} 34. Rc1 {[%emt 0:01:50]} Ne1 {[%emt 0:00:44]} 35. Nc3 {[%emt 0:03:13]} Re3 {[%emt 0:00:06]} 0-1

[Event "Romanian Championship Open 2025"]
[Site "Craiova"]
[Date "2025.02.19"]
[Round "5.1"]
[White "Ilinca, Felix-Antonio"]
[Black "Gavrilescu, David"]
[Result "0-1"]
[Annotator "TA"]
[ECO "B90"]
[WhiteElo "2412"]
[BlackElo "2543"]
[PlyCount "56"]
[EventDate "2025.02.12"]
[EventType "swiss"]
[EventCountry "ROU"]
[SourceTitle "playchess.com"]
[Source "ChessBase"]
[SourceQuality "1"]
[TimeControl "40/5400+30:900+30"]

{[%evp 11,56,-13,18,0,0,0,29,0,16,24,27,29,51,-52,-97,-101,-79,-85,-104,-81,-63,-121,-72,-272,-268,-273,-272,-310,-312,-326,-324,-319,-312,-510,-491,-728,-654,-843,-699,-704,-695,-804,-806,-942,-927,-941,-937]} 1. e4 {[%emt 0:00:24]} c5 {[%emt 0:00:27]} 2. Nf3 {[%emt 0:00:24]} d6 {[%emt 0:00:32]} 3. d4 {[%emt 0:00:35]} cxd4 {[%emt 0:00:23]} 4. Nxd4 {[%emt 0:00:28]} Nf6 {[%emt 0:00:32]} 5. Nc3 {[%emt 0:00:22]} a6 {[%emt 0:00:36]} 6. Rg1 {[%emt 0:00:58]} g6 {[%emt 0:00:59] 6...h5 is setting a new trend.} 7. g4 {[%emt 0:00:47][%cal Bg2g4,Bg4g5][%mdl 32] B90: Sicilian Najdorf: Unusual White 6th moves, 6 Be3 Ng4 and 6 Be3 e5.} Nc6 {[%emt 0:00:48]} 8. g5 {[%emt 0:00:59]} Nd7 {[%emt 0:00:43]} 9. h4 {[%emt 0:01:04] White has an edge.} Bg7 {[%emt 0:01:34]} 10. Be3 {[%emt 0:01:24]} h5 {[%emt 0:00:52]} 11. Be2 {[%emt 0:04:17]} O-O {[%emt 0:03:56] [#]} 12. Bxh5 $146 {[%emt 0:30:39]} ({Predecessor:} 12. Qd2 Nde5 13. O-O-O Ng4 14. Nxc6 bxc6 15. Bd4 Bxd4 16. Qxd4 c5 17. Qd2 Nxf2 18. Rdf1 {½-½ Fedoseev,V (2704)-Matlakov,M (2674) Chess.com Rapid Wk6 Swiss 2022 (8)}) 12... Nxd4 $15 {[%emt 0:16:43]} (12... gxh5 13. Qxh5 Nxd4 14. Bxd4 $16) 13. Bxd4 {[%emt 0:00:48]} Bxd4 {[%emt 0:01:11]} ({Weaker is} 13... gxh5 14. Qxh5 (14. Bxg7 Kxg7 15. Nd5 e6 $17) 14... e5 (14... Bxd4 15. g6 Bxf2+ 16. Ke2 Kg7 17. gxf7+ Bxg1 18. Rxg1+ Kf6 19. Qf5#) 15. Be3 $18) 14. Qxd4 {[%emt 0:00:13]} gxh5 {[%emt 0:00:56]} 15. Qd1 {[%emt 0:14:36]} Kg7 $1 {[%emt 0:10:22]} 16. Qd4+ {[%emt 0:09:02] [#]} (16. Qxh5 $15 Rh8 17. Qe2 Rxh4 18. f4) 16... Kh7 {[%emt 0:16:22]} (16... e5 $142 $1 {[%cal Re5d4]} 17. Qd2 Nb6) 17. Nd5 $2 {[%emt 0:06:04] [#] This move loses the game for White.} (17. Qd1 $17 Kg7 18. Qd4+ Kg8 19. Qd1) 17... Ne5 $1 $19 {[%emt 0:15:47]} 18. O-O-O {[%emt 0:06:08]} Bg4 {[%emt 0:04:15]} 19. f4 {[%emt 0:02:37]} Nf3 {[%emt 0:01:23]} 20. Qd3 {[%emt 0:04:09]} Nxg1 {[%emt 0:01:58]} 21. Rxg1 {[%emt 0:00:12]} Rc8 {[%emt 0:03:06]} 22. e5+ $2 {[%emt 0:08:33]} (22. Kb1) 22... Kh8 {[%emt 0:02:14] Hoping for ...dxe5. Black is clearly winning.} 23. Re1 {[%emt 0:03:15]} (23. Qd4 $142 Kg8 24. Rxg4 hxg4 25. e6) 23... Qa5 {[%emt 0:04:07][%csl LRa2,LRe1]} 24. b4 {[%emt 0:01:23] [#]} Bf5 $1 {[%emt 0:02:36]} 25. bxa5 {[%emt 0:02:01]} Bxd3 {[%emt 0:00:01]} 26. Kd2 {[%emt 0:00:08]} Bh7 {[%emt 0:01:25]} 27. Nxe7 {[%emt 0:00:35]} Rxc2+ {[%emt 0:00:32]} 28. Ke3 {[%emt 0:00:23]} dxe5 {[%emt 0:00:29] Weighted Error Value: White=0.86/Black=0.20 (precise)   Loses game:     	White=1     	---        Mistake:       	White=4     	Black=1      Inaccurate:     	White=1     	---        OK:         	White=4     	Black=9      Best:        	White=1     	---        Strong:       	---       	Black=2} 0-1